bitfinex/quotes_SOLUSD_20211001
["timestamp","ask_amount","ask_price","bid_price","bid_amount"]
[1633131740596,3.209e-05,159.6,159.59,2.64]
[1633131750005,3.209e-05,159.6,159.59,36.64]
[1633131750405,3.209e-05,159.6,159.59,2.64]
[1633131751706,3.209e-05,159.6,159.59,29.3928228]
[1633131761817,3.209e-05,159.6,159.59,34.80355246]
[1633131762818,3.209e-05,159.6,159.59,38.43112774]
[1633131764019,3.209e-05,159.6,159.59,34.80355246]
[1633131767521,3.209e-05,159.6,159.59,8.05072966]
[1633131768523,3.209e-05,159.6,159.59,11.68073387]
[1633131768725,3.209e-05,159.6,159.59,8.05072966]
[1633131774831,3.209e-05,159.6,159.59,2.64]
[1633131775632,3.209e-05,159.6,159.59,8.31317423]
[1633131775830,3.209e-05,159.6,159.59,24.35217423]
[1633131776029,3.209e-05,159.6,159.59,33.91111012]
[1633131776232,3.209e-05,159.6,159.59,39.35550011]
[1633131776429,3.209e-05,159.6,159.59,39.37638011]
[1633131777433,3.209e-05,159.6,159.59,33.93199012]
[1633131777635,22.7302484,159.77,159.59,33.93199012]
[1633131777833,22.7302484,159.77,159.63,3.62944881]
[1633131778036,22.7302484,159.77,159.65,3.62908211]
[1633131778235,22.7302484,159.77,159.66,2.64]
[1633131778434,2.64,159.78,159.66,2.64]
[1633131778834,2.64,159.78,159.67,5.92840025]
[1633131779436,28.22554905,159.77,159.67,5.92840025]
[1633131779634,28.22554905,159.77,159.66,2.64]
[1633131780434,2.64,159.78,159.66,2.64]
[1633131781235,2.64,159.78,159.67,5.92824667]
[1633131781434,24.02345437,159.78,159.67,5.92824667]
[1633131785338,2.64,159.78,159.67,5.92824667]
[1633131785539,2.64,159.78,159.68,2.64]
[1633131787042,1.64,159.78,159.68,2.64]
[1633131791846,1.64,159.78,159.68,24.13]
[1633131794445,1.64,159.78,159.68,2.64]
[1633131795246,1.64,159.78,159.68,24.837]
[1633131798355,2.64,159.82,159.68,24.837]
[1633131799154,2.64,159.85,159.69,9.83503093]
[1633131799353,2.64,159.85,159.7,6.26534874]
[1633131799553,2.64,159.85,159.71,6.46562057]
[1633131799753,2.64,159.85,159.72,2.64]
[1633131799953,2.64,159.85,159.72,21.257]
[1633131805759,2.64,159.85,159.73,6.46635101]
[1633131805957,2.64,159.85,159.74,2.64]
[1633131813372,77.7159,159.88,159.74,2.64]
[1633131813569,77.7159,159.88,159.74,2.14]
[1633131815170,15.14546388,159.89,159.74,2.14]
[1633131815574,25.51316002,159.91,159.74,2.14]
[1633131818773,2.66088,159.91,159.74,2.14]
[1633131818974,2.64,159.91,159.75,6.28955392]
[1633131819173,2.64,159.91,159.76,2.64]
[1633131822474,2.64,159.91,159.77,9.99183513]
[1633131822675,2.64,159.96,159.78,2.64]
[1633131823274,2.64,159.96,159.78,78.6112]
[1633131826584,2.64,159.96,159.78,191.254]
[1633131827183,2.64,159.96,159.78,78.6112]
[1633131828086,2.66088,159.96,159.78,78.6112]
[1633131833204,2.64,159.96,159.79,10.16756001]
[1633131833401,2.64,159.96,159.8,2.64]
[1633131833601,2.64,159.96,159.81,6.71084175]
[1633131833801,2.64,159.96,159.82,2.64]
[1633131834001,27.49863524,159.96,159.82,2.64]
[1633131836706,27.19063524,159.96,159.82,2.64]
[1633131840207,27.19063524,159.96,159.82,21.157]
[1633131840407,2.332,159.96,159.82,21.157]
[1633131841010,2.332,159.96,159.83,73.5503]
[1633131841209,2.332,159.96,159.84,2.64]
[1633131841409,27.23932814,159.95,159.84,2.64]
[1633131841810,2.64,159.98,159.84,2.64]
[1633131842010,2.64,159.98,159.84,19.899]
[1633131842810,23.92440988,159.98,159.84,19.899]
[1633131849017,2.64,159.98,159.84,19.899]
[1633131849218,470.15008382,160.0,159.84,19.899]
[1633131850020,29.7454616,159.99,159.84,19.899]
[1633131850420,32.3854616,159.99,159.84,2.64]
[1633131850620,71.331197,159.99,159.84,2.64]
[1633131850820,0.02088,159.98,159.84,2.64]
[1633131851021,2.64,159.97,159.84,2.64]
[1633131851221,17.64101944,159.97,159.84,2.64]
[1633131852328,77.1511,159.96,159.84,2.64]
[1633131852522,2.64,159.96,159.84,2.64]
[1633131852722,15.00101944,159.97,159.84,2.64]
[1633131852923,29.7454616,159.99,159.84,2.64]
[1633131853125,29.7454616,159.99,159.85,6.45252201]
[1633131853327,29.7454616,159.99,159.86,2.64]
[1633131853927,2.64,159.98,159.81,3.26314411]
[1633131854127,2.64,159.98,159.82,2.64]
[1633131854328,102.93171596,159.98,159.82,2.64]
[1633131854527,15.43435277,159.97,159.82,2.64]
[1633131854728,2.64,159.96,159.82,2.64]
[1633131855131,15.43435277,159.95,159.82,2.64]
[1633131855328,22.28704895,159.93,159.82,2.64]
[1633131855530,2.64,159.92,159.82,2.64]
[1633131872043,2.64,159.92,159.79,3.44689154]
[1633131872246,26.487,159.92,159.77,3.48166368]
[1633131872443,42.28246388,159.92,159.76,80.0119]
[1633131872644,42.28246388,159.92,159.77,6.95129105]
[1633131873043,42.28246388,159.92,159.77,10.43610501]
[1633131873243,18.43546388,159.92,159.77,10.43610501]
[1633131874844,18.43546388,159.92,159.77,9.93610501]
[1633131875044,18.43546388,159.92,159.77,6.45129105]
[1633131875245,18.43546388,159.92,159.77,9.92145422]
[1633131876146,18.43546388,159.92,159.77,6.45129105]
[1633131876948,18.43546388,159.92,159.76,2.64]
[1633131877348,92.95496388,159.92,159.76,2.64]
[1633131884257,92.95496388,159.92,159.76,6.13229639]
[1633131884757,92.95496388,159.92,159.76,2.64]
[1633131885262,2.64,159.92,159.76,28.30503627]
[1633131885458,2.64,159.92,159.78,3.45934847]
[1633131885660,2.64,159.92,159.79,6.11250466]
[1633131885859,2.64,159.92,159.8,0.02088]
[1633131886264,23.2285327,159.91,159.78,2.64]
[1633131886461,25.8685327,159.91,159.78,2.64]
[1633131890062,41.5126327,159.91,159.78,2.64]
[1633131902576,59.03944911,159.91,159.73,6.23831146]
[1633131902772,82.98416507,159.91,159.73,2.66088]
[1633131902974,1.81388536,159.9,159.73,2.66088]
[1633131903174,2.64,159.89,159.73,2.66088]
[1633131903375,2.64,159.89,159.73,6.23442006]
[1633131903974,2.64,159.89,159.74,3.57161962]
[1633131907180,2.64,159.89,159.76,3.54304131]
[1633131907383,2.64,159.89,159.79,3.50544616]
[1633131907582,2.64,159.89,159.8,3.5172967]
[1633131907782,76.6231,159.93,159.81,6.13276955]
[1633131907983,2.64,159.93,159.81,6.13276955]
[1633131908183,2.64,159.93,159.82,3.46587436]
[1633131908389,28.33318936,159.92,159.82,3.46587436]
[1633131909193,28.33318936,159.92,159.81,6.11717043]
[1633131909394,28.33318936,159.92,159.81,2.64]
[1633131910092,80.9519,159.93,159.81,2.64]
[1633131910294,80.9519,159.93,159.81,27.53164959]
[1633131910491,80.9519,159.93,159.82,3.47146096]
[1633131910892,2.64,159.93,159.82,3.47146096]
[1633131911793,2.64,159.93,159.81,27.52296531]
[1633131912192,2.64,159.93,159.82,3.458315]
[1633131912393,2.64,159.93,159.83,2.64]
[1633131919001,2.64,159.98,159.83,2.64]
[1633131920202,2.64,159.98,159.83,29.74885446]
[1633131920603,2.64,159.98,159.83,26.279]
[1633131921003,2.64,159.98,159.84,75.1231]
[1633131921203,2.64,159.98,159.85,2.64]
[1633131923103,2.64,159.98,159.85,23.086]
[1633131928607,2.14,159.98,159.85,23.086]
[1633131935515,2.14,159.98,159.85,22.586]
[1633131935714,2.14,159.98,159.85,5.67797798]
[1633131939717,2.14,159.98,159.86,3.55506661]
[1633131943417,2.14,159.98,159.87,3.57175072]
[1633131944620,2.14,159.98,159.87,25.27475072]
[1633131944819,2.14,159.98,159.88,3.54508258]
[1633131945321,2.14,159.98,159.87,21.703]
[1633131945322,2.14,159.98,159.89,3.53888093]
[1633131947725,2.14,159.98,159.88,3.54520018]
[1633131952544,2.14,159.98,159.87,6.1942547]
[1633131953648,2.14,159.98,159.88,3.58908164]
[1633131954246,2.14,159.98,159.87,3.57909108]
[1633131957047,2.14,159.98,159.88,3.57389047]
[1633131958148,2.14,159.98,159.87,3.57886853]
[1633131959751,2.14,159.98,159.88,3.58410417]
[1633131961754,2.14,159.98,159.89,3.56794702]
[1633131961955,2.14,159.98,159.9,3.54984891]
[1633131962156,2.14,159.98,159.9,18.06884891]
[1633131963559,2.64,160.02,159.91,6.1825603]
[1633131963756,2.64,160.02,159.94,3.52082714]
[1633131963957,2.64,160.02,159.94,23.14482714]
[1633131964158,78.5122,160.04,159.94,23.14482714]
[1633131964959,391.45696705,160.05,159.95,7.24996172]
[1633131965756,391.45696705,160.05,159.94,19.624]
[1633131966558,391.45696705,160.05,159.93,6.15181675]
[1633131966559,391.45696705,160.05,159.93,2.64]
[1633131972567,414.43390523,160.05,159.93,2.64]
[1633131974066,414.43390523,160.05,159.91,74.2205]
[1633131980373,430.06520523,160.05,159.91,74.2205]
[1633131980573,444.13091924,160.05,159.89,3.56797541]
[1633131980774,444.13091924,160.05,159.89,7.25224429]
[1633131981574,444.13091924,160.05,159.89,10.80156077]
[1633131985979,444.13091924,160.05,159.89,9.30156077]
[1633131988181,444.13091924,160.05,159.89,5.75224429]
[1633131988385,444.13091924,160.05,159.87,3.57208432]
[1633131988781,0.02088,160.04,159.86,3.5775422]
[1633131988981,2.64,160.03,159.86,3.5775422]
[1633131989181,44.41226231,160.03,159.86,3.5775422]
[1633131989381,41.77226231,160.02,159.86,3.5775422]
[1633131989585,2.64,160.01,159.86,3.5775422]
[1633131989786,44.41226231,160.01,159.86,3.5775422]
[1633131989989,28.74777151,160.01,159.86,3.5775422]
[1633131990189,15.6644908,160.0,159.86,3.5775422]
[1633131990385,27.97902896,159.99,159.86,3.5775422]
[1633131992389,27.97902896,159.99,159.85,3.52703827]
[1633131992990,27.97902896,159.99,159.86,3.53613589]
[1633131995091,27.97902896,159.99,159.85,3.55178052]
[1633131995794,27.97902896,159.99,159.86,3.55260722]
[1633131996392,27.97902896,159.99,159.87,3.53152831]
[1633131996793,27.97902896,159.99,159.86,3.51147888]
[1633131998993,27.97902896,159.99,159.87,3.52220779]
[1633132000995,27.97902896,159.99,159.88,3.51793812]
[1633132001197,27.97902896,159.99,159.87,3.51812866]
[1633132001596,27.97902896,159.99,159.88,3.51906991]
[1633132002196,2.64,159.99,159.89,3.50522111]
[1633132002397,2.64,159.99,159.9,3.48673748]
[1633132002997,2.64,159.99,159.91,3.47717393]
[1633132003800,2.64,159.99,159.9,3.50249526]
[1633132004403,2.64,159.99,159.9,3.48161526]
[1633132006406,2.64,159.99,159.91,3.47515406]
[1633132008806,2.64,159.99,159.9,3.48536542]
[1633132010109,2.64,159.99,159.89,3.47472767]
[1633132010308,2.64,159.99,159.9,3.47080476]
[1633132011511,2.64,159.99,159.89,3.46548183]
[1633132011709,2.64,159.99,159.9,3.46405563]
[1633132013911,2.64,159.99,159.9,20.80705563]
[1633132014313,2.64,160.02,159.9,20.80705563]
[1633132014712,2.64,160.02,159.9,17.343]
[1633132015712,2.64,160.02,159.89,6.11740088]
[1633132016312,2.64,160.02,159.89,2.64]
[1633132017315,2.64,160.02,159.89,6.09993299]
[1633132017917,2.64,160.02,159.9,3.45469823]
[1633132018116,2.64,160.02,159.92,3.44064912]
[1633132018316,2.64,160.02,159.93,3.41785503]
[1633132018516,358.69339179,160.05,159.9,20.585]
[1633132018517,2.64,160.06,159.94,6.05364529]
[1633132018717,2.64,160.06,159.94,24.69864529]
[1633132019522,2.64,160.06,159.94,21.285]
[1633132019919,2.64,160.06,159.94,24.6826056]
[1633132020920,2.64,160.06,159.95,3.37591349]
[1633132021124,2.64,160.06,159.96,2.64]
[1633132021323,2.64,160.06,159.96,6.00632353]
[1633132021521,82.0287,160.11,159.96,2.64]
[1633132021921,82.0287,160.11,159.96,6.00624231]
[1633132022123,82.0287,160.11,159.97,3.35548663]
[1633132022322,81.5287,160.11,159.98,2.64]
[1633132022521,2.64,160.11,159.99,2.64]
[1633132023322,27.30332707,160.11,159.99,2.64]
[1633132023725,2.64,160.11,159.99,2.64]
[1633132023923,2.64,160.11,159.99,24.8663638]
[1633132024123,555.68067789,160.13,159.99,24.8663638]
[1633132024327,555.68067789,160.13,160.0,3.29892904]
[1633132024522,555.68067789,160.13,160.01,2.64]
[1633132026925,555.68067789,160.13,160.02,33.17005648]
[1633132027124,2.64,160.2,160.03,2.66088]
[1633132027327,423.51036112,160.19,160.03,125.53995648]
[1633132027725,26.78334878,160.18,160.03,125.53995648]
[1633132027924,26.78334878,160.18,160.03,19.63288]
[1633132028124,26.78334878,160.18,160.03,19.612]
[1633132029225,423.51036112,160.19,160.03,72.94935911]
[1633132029426,423.51036112,160.19,160.04,75.21]
[1633132029626,423.51036112,160.19,160.05,2.66088]
[1633132029844,2.64,160.25,160.07,15.6036]
[1633132030028,2.64,160.25,160.08,2.64]
[1633132030426,2.64,160.25,160.08,56.51180355]
[1633132030627,2.14,160.25,160.09,20.72262707]
[1633132030827,367.61674471,160.26,160.1,2.64]
[1633132031226,367.61674471,160.26,160.1,56.51180355]
[1633132031427,367.61674471,160.26,160.11,88.0077]
[1633132031627,646.00350626,160.29,160.12,2.64]
[1633132031827,22.97967366,160.3,160.12,56.51180355]
[1633132032027,2.66088,160.33,160.13,53.87180355]
[1633132032228,2.66088,160.33,160.14,2.64]
[1633132032229,2.64,160.33,160.14,2.64]
[1633132032430,2.64,160.33,160.14,56.51180355]
[1633132032630,2.64,160.33,160.15,53.87180355]
[1633132032844,2.64,160.33,160.16,2.64]
[1633132033030,27.40687101,160.32,160.16,2.64]
[1633132033430,27.42775101,160.32,160.16,2.64]
[1633132033632,2.64,160.31,160.16,2.64]
[1633132034935,2.64,160.31,160.16,35.78195425]
[1633132035735,2.66088,160.35,160.17,75.4768]
[1633132035933,2.66088,160.35,160.18,2.64]
[1633132036135,2.66088,160.35,160.18,35.78195425]
[1633132036334,2.66088,160.35,160.19,33.14195425]
[1633132036535,2.66088,160.35,160.2,2.64]
[1633132036734,2.64,160.35,160.2,2.64]
[1633132036934,2.64,160.35,160.2,35.78195425]
[1633132037340,2.64,160.4,160.2,53.23291465]
[1633132037735,2.64,160.4,160.2,119.12291465]
[1633132038136,2.64,160.4,160.24,15.5869]
[1633132038337,2.64,160.43,160.25,2.64]
[1633132038536,29.51669608,160.45,160.25,35.78195425]
[1633132038735,356.10039045,160.44,160.26,33.14195425]
[1633132038952,356.10039045,160.44,160.27,2.64]
[1633132039352,356.10039045,160.44,160.28,33.14195425]
[1633132039554,2.66088,160.45,160.29,2.64]
[1633132039953,2.66088,160.45,160.29,35.78195425]
[1633132040156,74.5972,160.46,160.29,51.36385425]
[1633132040553,21.45498228,160.48,160.29,51.36385425]
[1633132040754,2.64,160.49,160.29,51.36385425]
[1633132040958,77.3145,160.52,160.31,65.89]
[1633132041155,2.64,160.52,160.32,2.64]
[1633132041357,2.64,160.52,160.32,72.13891465]
[1633132041554,2.64,160.52,160.33,33.14195425]
[1633132041754,22.21109691,160.51,160.34,2.64]
[1633132042556,22.21109691,160.51,160.34,108.93365425]
[1633132042955,22.21109691,160.51,160.34,126.38461465]
[1633132044356,22.21109691,160.51,160.35,65.89]
[1633132044556,22.21109691,160.51,160.36,2.64]
[1633132044757,22.21109691,160.51,160.36,54.60495425]
[1633132044956,22.21109691,160.51,160.37,33.14195425]
[1633132045159,22.21109691,160.51,160.38,2.64]
[1633132045360,389.47713954,160.53,160.38,2.64]
[1633132045558,389.47713954,160.53,160.39,33.14195425]
[1633132045758,389.47713954,160.53,160.4,2.64]
[1633132045957,389.47713954,160.53,160.4,2.66088]
[1633132046158,2.64,160.58,160.41,33.14195425]
[1633132046358,29.19087998,160.57,160.42,2.64]
[1633132046859,29.19087998,160.57,160.43,32.9613987]
[1633132047061,29.19087998,160.57,160.44,2.64]
[1633132049458,2.66088,160.59,160.44,2.64]
[1633132050462,26.03956722,160.58,160.44,2.64]
[1633132050868,440.42572654,160.53,160.44,2.64]
[1633132053369,21.46756914,160.54,160.44,2.64]
[1633132055271,2.64,160.59,160.44,2.64]
[1633132055473,2.64,160.59,160.44,20.796]
[1633132056270,24.56691761,160.59,160.44,20.796]
[1633132057674,2.64,160.59,160.44,20.796]
[1633132058275,2.64,160.59,160.45,0.0212976]
[1633132058476,2.64,160.59,160.46,2.64]
[1633132059880,28.63296864,160.59,160.46,2.64]
[1633132060679,2.64,160.59,160.46,2.64]
[1633132061476,2.64,160.59,160.46,2.14]
[1633132061677,77.7457,160.62,160.46,5.07927419]
[1633132061877,77.7457,160.62,160.46,33.10084314]
[1633132062079,26.09991863,160.63,160.46,33.10084314]
[1633132063381,2.64,160.63,160.46,36.03655339]
[1633132063779,2.64,160.63,160.5,2.90835921]
[1633132063978,0.07,160.65,160.51,5.53978687]
[1633132064181,0.07,160.65,160.51,36.50063001]
[1633132064380,0.07,160.65,160.52,78.7687]
[1633132064581,0.07,160.65,160.53,2.64]
[1633132064979,0.07,160.65,160.53,36.49472611]
[1633132065782,2.64,160.73,160.69,25.7860001]
[1633132065981,2.64,160.78,160.69,25.7860001]
[1633132066181,0.09005594,160.79,160.69,25.7860001]
[1633132066379,0.09005594,160.79,160.7,2.64]
[1633132067581,0.09005594,160.79,160.72,2.68521069]
[1633132067781,63.64093594,160.94,160.73,2.64]
[1633132067982,27.1221675,160.86,160.73,2.64]
[1633132068981,2.64,160.87,160.73,2.64]
[1633132069181,2.14,160.87,160.73,2.64]
[1633132069983,27.10608567,160.87,160.73,24.619]
[1633132070183,2.14,160.87,160.73,24.619]
[1633132070382,2.64,160.9,160.73,24.619]
[1633132072182,21.42850031,160.91,160.74,78.1242]
[1633132072386,21.42850031,160.91,160.75,2.64]
[1633132072782,18.1879,160.93,160.76,0.0212976]
[1633132072982,2.64,160.93,160.77,2.64]
[1633132073184,2.64,160.93,160.77,21.8282976]
[1633132074385,2.64,160.93,160.77,2.6612976]
[1633132074584,2.64,160.93,160.77,2.64]
[1633132077588,2.64,160.93,160.77,53.48002963]
[1633132077788,72.29958,161.0,160.77,53.48002963]
[1633132077789,2.64,160.98,160.77,53.48002963]
[1633132077989,2.64,160.98,160.78,0.0212976]
[1633132078189,2.64,160.98,160.79,2.64]
[1633132078393,30.88482343,160.98,160.8,0.0212976]
[1633132078590,30.88482343,160.98,160.81,2.64]
[1633132078792,30.88482343,160.98,160.82,0.0212976]
[1633132078990,2.64,160.98,160.83,2.64]
[1633132079191,77.7215,161.01,160.86,0.0212976]
[1633132079391,31.98892029,161.04,160.87,2.64]
[1633132079991,18.176,161.04,160.87,2.64]
[1633132080191,17.676,161.04,160.87,2.64]
[1633132080392,22.01090155,161.03,160.87,2.64]
[1633132080995,17.676,161.04,160.87,2.64]
[1633132081994,24.10885242,161.03,160.87,2.64]
[1633132082994,24.10885242,161.03,160.88,0.0212976]
[1633132083194,24.10885242,161.03,160.89,2.64]
[1633132083393,24.10885242,161.03,160.89,2.6612976]
[1633132083596,24.10885242,161.03,160.89,2.64]
[1633132084594,17.676,161.04,160.89,2.64]
[1633132084794,2.64,161.06,160.89,26.3042976]
[1633132086597,2.64,161.06,160.9,0.0212976]
[1633132086795,2.64,161.06,160.91,2.64]
[1633132086999,2.64,161.06,160.92,0.0212976]
[1633132087195,2.64,161.06,160.93,2.64]
[1633132087399,32.54433035,161.06,160.93,2.64]
[1633132092800,32.54433035,161.06,160.89,2.64]
[1633132093004,2.64,161.06,160.89,2.64]
[1633132093601,2.64,161.06,160.9,0.0212976]
[1633132093800,2.64,161.06,160.91,2.64]
[1633132094202,23.61475481,161.05,160.91,2.6612976]
[1633132094802,2.64,161.05,160.91,2.6612976]
[1633132095802,2.64,161.09,160.91,2.6612976]
[1633132096003,65.2622,161.11,160.92,44.0]
[1633132096203,2.64,161.1,160.93,2.6612976]
[1633132096404,2.64,161.1,160.94,0.0212976]
[1633132096603,2.64,161.1,160.95,2.64]
[1633132096804,2.64,161.1,160.95,2.6612976]
[1633132097205,2.64,161.1,160.95,2.64]
[1633132097403,29.99964699,161.09,160.95,2.64]
[1633132097610,32.63964699,161.09,160.95,2.64]
[1633132098205,54.64519628,161.09,160.91,2.64]
[1633132098407,54.64519628,161.09,160.86,113.85403156]
[1633132098408,0.02088,161.08,160.88,77.9347]
[1633132098606,2.64,161.07,160.88,77.9347]
[1633132098805,29.9402169,161.06,160.88,77.9347]
[1633132099005,2.64,161.05,160.89,5.59190823]
[1633132099206,2.64,161.05,160.9,2.64]
[1633132099606,2.64,161.05,160.87,2.64]
[1633132099810,2.66088,161.05,160.87,2.64]
[1633132100206,2.64,161.05,160.87,2.64]
[1633132100408,2.64,161.05,160.88,0.0212976]
[1633132100608,2.64,161.05,160.89,2.64]
[1633132102608,2.64,161.05,160.9,5.58897073]
[1633132103011,2.64,161.05,160.91,2.64]
[1633132103814,23.3161827,161.04,160.88,2.49766768]
[1633132104014,2.64,161.03,160.87,2.50318982]
[1633132104216,2.64,161.03,160.88,2.4908619]
[1633132105113,2.64,161.03,160.89,5.11973148]
[1633132105313,2.64,161.03,160.89,2.64]
[1633132105512,2.64,161.03,160.9,5.62180703]
[1633132105714,2.64,161.03,160.9,7.60753472]
[1633132105913,2.64,161.03,160.9,5.12180703]
[1633132106313,2.64,161.03,160.87,2.5159321]
[1633132106513,2.64,161.03,160.88,2.51286422]
[1633132107413,2.64,161.03,160.87,2.52012364]
[1633132107616,2.64,161.03,160.88,2.52164031]
[1633132107816,49.0,161.02,160.86,2.64]
[1633132108015,25.56736237,161.01,160.86,2.64]
[1633132108221,25.56736237,161.01,160.86,10.69634523]
[1633132108415,2.64,161.01,160.86,14.40540026]
[1633132109518,21.35325129,161.0,160.86,14.40540026]
[1633132109716,2.64,160.99,160.86,14.40540026]
[1633132109926,2.64,160.99,160.86,2.64]
[1633132111117,2.64,160.99,160.86,2.14]
[1633132111517,2.64,160.99,160.86,10.08019153]
[1633132111718,2.64,160.99,160.87,0.0212976]
[1633132111919,2.64,160.99,160.88,2.64]
[1633132112119,2.64,160.99,160.88,14.19267493]
[1633132112721,2.64,160.99,160.88,6.31075234]
[1633132112920,2.64,160.99,160.88,6.28945474]
[1633132113119,2.64,160.99,160.88,2.64]
[1633132113520,1.14,160.99,160.88,2.64]
[1633132118021,2.64,161.03,160.88,2.6612976]
[1633132119021,23.12894478,161.02,160.88,2.64]
[1633132119322,2.64,161.01,160.88,2.64]
[1633132121126,2.64,161.01,160.88,2.6612976]
[1633132124128,28.07731659,161.0,160.88,2.6612976]
[1633132124331,30.71731659,161.0,160.88,2.64]
[1633132125433,2.64,161.0,160.88,2.64]
[1633132126532,638.61991342,161.11,160.88,2.64]
[1633132126533,2.64,161.04,160.88,2.64]
[1633132126731,2.64,161.04,160.88,18.5320913]
[1633132126933,2.64,161.04,160.89,15.5236]
[1633132127131,2.64,161.04,160.9,2.64]
[1633132128234,0.14,161.04,160.9,2.64]
[1633132128836,0.14,161.04,160.9,18.5320913]
[1633132129638,2.64,161.07,160.93,2.54916243]
[1633132129838,2.64,161.07,160.98,2.51148107]
[1633132130039,560.46901342,161.11,160.99,2.64]
[1633132130439,2.64,161.11,160.99,2.64]
[1633132130641,2.64,161.16,160.99,22.48068344]
[1633132130838,2.64,161.16,160.99,22.50198104]
[1633132131239,2.64,161.16,161.0,115.5888]
[1633132131442,2.14,161.16,161.01,2.64]
[1633132132039,2.14,161.16,161.01,19.98967815]
[1633132132839,2.14,161.16,161.01,41.92067815]
[1633132134440,24.4251213,161.2,161.02,78.4968]
[1633132134640,409.48537414,161.21,161.02,78.4968]
[1633132134641,408.98537414,161.21,161.03,2.64]
[1633132134855,408.98537414,161.21,161.03,18.99806704]
[1633132136943,408.98537414,161.21,161.03,81.75806704]
[1633132137140,408.98537414,161.21,161.03,18.99806704]
[1633132137746,433.54062248,161.21,161.03,18.99806704]
[1633132137943,408.48537414,161.21,161.03,81.75806704]
[1633132138143,408.48537414,161.21,161.03,18.99806704]
[1633132138543,408.48537414,161.21,161.03,81.75806704]
[1633132138743,408.48537414,161.21,161.03,101.11606704]
[1633132139344,436.06865148,161.21,161.04,16.34362259]
[1633132139546,436.06865148,161.21,161.05,2.64]
[1633132146868,435.56865148,161.21,161.05,2.64]
[1633132148957,407.98537414,161.21,161.05,2.64]
[1633132149358,407.98537414,161.21,161.05,2.6612976]
[1633132149558,407.98537414,161.21,161.06,0.0212976]
[1633132149760,407.98537414,161.21,161.06,2.6612976]
[1633132149976,407.98537414,161.21,161.07,0.0212976]
[1633132150177,407.98537414,161.21,161.08,2.64]
[1633132150378,407.98537414,161.21,161.08,17.4052976]
[1633132151479,407.98537414,161.21,161.08,17.384]
[1633132151678,431.51456794,161.21,161.08,17.384]
[1633132153282,407.98537414,161.21,161.08,17.384]
[1633132154285,429.94973847,161.21,161.08,17.384]
[1633132155585,24.60436433,161.21,161.08,17.384]
[1633132155783,2.64,161.21,161.08,17.384]
[1633132156784,31.31415856,161.21,161.08,17.384]
[1633132157584,2.64,161.21,161.08,17.384]
[1633132160586,2.14,161.21,161.08,17.384]
[1633132164591,2.64,161.26,161.08,17.384]
[1633132164789,1.64,161.26,161.08,17.384]
[1633132165190,1.64,161.26,161.09,77.0089]
[1633132165389,1.64,161.26,161.1,2.64]
[1633132170196,508.37283881,161.28,161.13,2.56570887]
[1633132170395,508.37283881,161.28,161.14,2.64]
[1633132171494,508.37283881,161.28,161.14,29.05154301]
[1633132172298,508.37283881,161.28,161.15,75.8728]
[1633132172497,73.2693,161.31,161.16,2.64]
[1633132172798,497.59260235,161.33,161.16,2.64]
[1633132173497,497.59260235,161.33,161.16,29.03024541]
[1633132173699,24.96550751,161.32,161.16,29.03024541]
[1633132174301,497.59260235,161.33,161.16,31.61226489]
[1633132174500,497.59260235,161.33,161.17,15.4963]
[1633132174706,497.59260235,161.33,161.18,2.64]
[1633132175302,497.59260235,161.33,161.19,16.04513461]
[1633132175501,24.30893486,161.36,161.2,2.64]
[1633132176902,73.0965,161.37,161.2,2.64]